Cogmind - Beta 9.4 --- EXPLORER MODE // 2020.01.12 @ 19:14:07 Player: K.Ioz Result: Self-destructed Performance ------------- Evolutions (1) 500 Regions Visited (3) 600 Robots Destroyed (21) 105 Value Destroyed (684) 684 Prototype IDs (2) 40 Alien Tech Used (0) 0 Bonus (0) 0 TOTAL SCORE: 1929 Bonus ------- None Cogmind --------- Core Integrity 389/400 Matter 190/300 Energy 249/250 System Corruption 0% Temperature Cool (0) Movement Flying (117) Ox1 Location -9/Materials Parts ------- > --- POWER (1) -------- Ion Engine > --- PROPULSION (3) --- Flight Unit Flight Unit > --- UTILITY (4) ------ Visual Processing Unit Sensor Array Sensor Array > --- WEAPON (2) ------- Light Assault Rifle Grenade Launcher > --- INVENTORY (4) ---- Light Ion Engine Advanced Terrain Scanner Small Laser Peak State ------------ > --- POWER ------------ Light Ion Engine > --- PROPULSION ------- Flight Unit Flight Unit Flight Unit > --- UTILITY ---------- Visual Processing Unit Sensor Array Sensor Array > --- WEAPON ----------- Small Laser Light Assault Rifle > --- INVENTORY -------- Ion Engine Advanced Terrain Scanner Grenade Launcher [Rating: 10] Favorites ----------- Power Light Ion Engine Engine Light Ion Engine Propulsion Flight Unit Treads Light Treads Flight Unit Flight Unit Utility Sensor Array Device Sensor Array Processor Visual Processing Unit Weapon Small Laser Energy Gun Small Laser Ballistic Gun Light Assault Rifle Launcher Grenade Launcher Build | -11 -10 -10 -9 ------- Run | Scr Mat Min Mat Slots Evolved 3 | . 1 . 2 Power . | . . . . Propulsion 1 | . . . 1 Utility 2 | . 1 . 1 Weapon . | . . . . Parts Attached 20 | 7 7 3 3 Power 4 | 1 2 . 1 Engine 4 | 1 2 . 1 Core . | . . . . Reactor . | . . . . Propulsion 7 | 2 2 2 1 Treads 2 | 2 . . . Leg . | . . . . Wheel . | . . . . Hover . | . . . . Flight 5 | . 2 2 1 Utility 5 | 2 2 1 . Device 2 | 1 . 1 . Storage . | . . . . Processor 3 | 1 2 . . Hackware . | . . . . Protection . | . . . . Artifact . | . . . . Weapon 4 | 2 1 . 1 Energy Gun 1 | 1 . . . Energy Cannon . | . . . . Ballistic Gun 2 | 1 1 . . Ballistic Cannon . | . . . . Launcher 1 | . . . 1 Special Weapon . | . . . . Impact Weapon . | . . . . Slashing Weapon . | . . . . Piercing Weapon . | . . . . Special Melee Weapon . | . . . . Unidentified Prototypes . | . . . . Parts Lost 1 | . . . 1 Power . | . . . . Propulsion 1 | . . . 1 Utility . | . . . . Weapon . | . . . . Highest Loss Streak 1 | . . . 1 Average Slot Usage (%) 97 | . 98 100 89 Engine 11 | . 12 12 10 Flight 24 | . 23 25 29 Device 14 | . 12 22 20 Processor 20 | . 23 14 10 Energy Gun 10 | . 12 12 4 Ballistic Gun 11 | . 12 12 10 Naked Turns . | . . . . Heaviest Build 11 | 7 8 7 11 Greatest Support 40 | 40 40 8 12 Greatest Overweight (x) 2 | 1 2 . . Average Overweight (x) . | . . . . Largest Inventory Capacity 4 | 4 4 4 4 Average Capacity 4 | 4 4 4 4 Most Carried 4 | 4 4 4 4 Average Carried 3 | 2 3 3 3 Final Capacity 4 | 4 4 4 4 Final Carried 4 | 3 4 4 3 Class Distribution -------------------- 100% | Hacker-Mutant Dominant Class ---------------- Hacker-Mutant | -10/Materials Hacker-Mutant | -10/Mines Hacker-Mutant | -9/Materials Resources | -11 -10 -10 -9 ----------- Run | Scr Mat Min Mat Matter Collected 552 | 210 296 46 . Remotely . | . . . . Salvage Created 762 | . 474 100 188 Parts 48 | . 32 4 12 Haulers Intercepted . | . . . . Recyclers Shooed . | . . . . Parts Field Recycled . | . . . . Retrieved Matter . | . . . . Parts Self-Destructed . | . . . . Prevented . | . . . . Kills | -11 -10 -10 -9 ------- Run | Scr Mat Min Mat Combat Hostiles Destroyed 16 | . 10 2 4 Guns 12 | . 10 2 . AOE 4 | . . . 4 Classes Destroyed 6 | . 2 . 4 Builder 1 | . . . 1 Recycler 1 | . . . 1 Watcher 3 | . 3 . . Swarmer 1 | . . . 1 Grunt 12 | . 10 2 . Sentry 3 | . . . 3 Best Kill Streak 6 | . 4 2 6 Combat Bots Only 4 | . 4 2 4 Max Kills in Single Turn 2 | . 1 1 2 Gunslinging . | . . . . Exploded 1 | . . . 1 Melee . | . . . . Uniques/NPCs Destroyed . | . . . . Combat | -11 -10 -10 -9 -------- Run | Scr Mat Min Mat Damage Taken 263 | . 91 8 164 Core 25 | . 6 8 11 Absorbed by Shields . | . . . . Core Remaining (%) 97 | 100 . 94 . Volleys Fired 87 | . 56 16 15 Largest 2 | . 2 2 2 Hottest 60 | . 60 60 60 Shots Fired 134 | . 85 22 27 Gun 127 | . 85 22 20 Cannon . | . . . . Launcher 7 | . . . 7 Special . | . . . . Kinetic 87 | . 56 16 15 Thermal 40 | . 29 6 5 Explosive 7 | . . . 7 Electromagnetic . | . . . . Robot Hit Streak 28 | . 28 16 17 Robot Miss Streak 2 | . 2 1 1 Penetration Max . | . . . . Secondary Targets . | . . . . Shots Hit Robots 102 | . 69 17 16 Core Hits 45 | . 24 8 13 Critical Hits . | . . . . Critical Kills . | . . . . Critical Parts Destroyed . | . . . . Melee Attacks . | . . . . Impact . | . . . . Slashing . | . . . . Piercing . | . . . . Sneak Attacks . | . . . . Combat Hostiles . | . . . . Follow-up Attacks . | . . . . Damage Inflicted 1452 | . 820 168 464 Guns 1069 | . 820 168 81 Cannons . | . . . . Explosions 383 | . . . 383 Melee . | . . . . Ramming . | . . . . Kinetic 784 | . 605 98 81 Thermal 285 | . 215 70 . Explosive 383 | . . . 383 Electromagnetic . | . . . . Impact . | . . . . Slashing . | . . . . Piercing . | . . . . Highest Corruption . | . . . . Average Corruption . | . . . . Corruption Purged . | . . . . Overload Shots . | . . . . Overflow Damage 57 | . . . 57 Projectiles . | . . . . Explosions 57 | . . . 57 Melee . | . . . . Knockbacks . | . . . . Impact . | . . . . Kinetic . | . . . . Secondary . | . . . . Self-Inflicted Damage 89 | . . . 89 Shots 2 | . . . 2 Rammed . | . . . . Targets Rammed . | . . . . Kicked . | . . . . Crushed . | . . . . Highest Temperature 81 | . 48 81 40 Average Temperature 16 | . 12 26 18 Received Heat Transfer 144 | . 99 9 36 Siege Activations . | . . . . Robots Corrupted . | . . . . Combat Hostiles . | . . . . Parts Fried . | . . . . Impact Corruptions . | . . . . Robots Melted . | . . . . Combat Hostiles . | . . . . Parts Melted . | . . . . Heat Transferred 650 | . 500 150 . Parts Sabotaged . | . . . . Parts Stolen . | . . . . Parts Stripped . | . . . . Power Chain Reactions . | . . . . Missiles Intercepted . | . . . . Alert | -11 -10 -10 -9 ------- Run | Scr Mat Min Mat Peak Influence 160 | . 160 51 147 Average Influence 28 | . 27 45 27 Maximum Alert Level . | . . . . Low Security (%) 100 | 100 100 100 100 Level 1 . | . . . . Level 2 . | . . . . Level 3 . | . . . . Level 4 . | . . . . Level 5 . | . . . . High Security . | . . . . Max Security . | . . . . Squads Dispatched 1 | . . 1 . Investigation 1 | . . 1 . Extermination . | . . . . Reinforcement . | . . . . Assault . | . . . . Garrison . | . . . . Intercept . | . . . . Construction Impeded . | . . . . Haulers Reinforced . | . . . . Stealth | -11 -10 -10 -9 --------- Run | Scr Mat Min Mat Distress Signals 2 | . 1 . 1 Communications Jammed . | . . . . Distress Signals . | . . . . Times Spotted 30 | . 20 4 6 Peak Tracking Total 4 | . 4 2 3 Tactical Retreats 3 | . 3 . . Traps | -11 -10 -10 -9 ------- Run | Scr Mat Min Mat Traps Triggered . | . . . . Indirectly . | . . . . Trap Hack Attempts . | . . . . Triggered . | . . . . Disarmed . | . . . . Reprogrammed 6 | . 6 . . Reused . | . . . . Traps Extracted . | . . . . Installed . | . . . . Triggered . | . . . . Machines | -11 -10 -10 -9 ---------- Run | Scr Mat Min Mat Machines Disabled 2 | . . . 2 Max in Single Turn 2 | . . . 2 Machines Sabotaged . | . . . . Garrisons Compromised . | . . . . Overloaded Fab Kills . | . . . . Fab Network Shutdowns . | . . . . Hacking | -11 -10 -10 -9 --------- Run | Scr Mat Min Mat Machines Accessed 10 | . 8 1 1 Terminals 7 | . 6 . 1 Fabricators . | . . . . Repair Stations . | . . . . Recycling Units 2 | . 2 . . Scanalyzers . | . . . . Garrison Access . | . . . . Total Hacks 23 | . 19 1 3 Successful 16 | . 14 1 1 Failed 7 | . 5 . 2 Catastrophic . | . . . . Database Lockouts . | . . . . Manual 4 | . 1 . 3 Terminals 17 | . 14 . 3 Fabricators . | . . . . Repair Stations . | . . . . Recycling Units 5 | . 5 . . Scanalyzers . | . . . . Garrison Access . | . . . . Terminal Hacks 12 | . 10 1 1 Robot Analysis 1 | . 1 . . Prototype ID Bank 1 | . 1 . . Open Door 1 | . . 1 . Locate Traps 4 | . 3 . 1 Reprogram Traps 1 | . 1 . . Dispatch Records 1 | . 1 . . Hauler Manifests 1 | . 1 . . Registered Components 1 | . 1 . . Registered Prototypes 1 | . 1 . . Fabricator Hacks . | . . . . Repair Station Hacks . | . . . . Recycling Unit Hacks 4 | . 4 . . Process 1 | . 1 . . Report Inventory 2 | . 2 . . Retrieve Components 1 | . 1 . . Scanalyzer . | . . . . Garrison Access Hacks . | . . . . Unauthorized Hacks . | . . . . Terminals . | . . . . Fabricators . | . . . . Repair Stations . | . . . . Recycling Units . | . . . . Scanalyzers . | . . . . Garrison Access . | . . . . Data Cores Recovered . | . . . . Used . | . . . . Hacking Detections 4 | . 3 . 1 Full Trace Events . | . . . . Feedback Events . | . . . . Feedback Blocked . | . . . . Robot Schematics Acquired . | . . . . Robots Built . | . . . . Matter . | . . . . Time . | . . . . Total Robot Build Rating . | . . . . Part Schematics Acquired . | . . . . Parts Built . | . . . . Matter . | . . . . Time . | . . . . Total Part Build Rating . | . . . . Parts Repaired . | . . . . Time . | . . . . Parts Recycled . | . . . . Recycled Matter 139 | . 139 . . Retrieved Matter . | . . . . Retrieved Components 9 | . 9 . . Parts Scanalyzed . | . . . . Part Schematics Acquired . | . . . . Parts Damaged . | . . . . Bothacking | -11 -10 -10 -9 ------------ Run | Scr Mat Min Mat Used RIF Installer . | . . . . Robots Hacked . | . . . . Non-combat . | . . . . Combat . | . . . . Robot Hacks Applied . | . . . . Relay Couplers Released . | . . . . Robots Rewired . | . . . . Allies Hacked . | . . . . Hacks Repelled . | . . . . Allies | -11 -10 -10 -9 -------- Run | Scr Mat Min Mat Total Allies . | . . . . Largest Group . | . . . . Highest-Rated Group . | . . . . Highest-Rated Ally . | . . . . Total Orders . | . . . . Ally Attacks . | . . . . Total Damage . | . . . . Kills . | . . . . Allies Corrupted . | . . . . Allies Melted . | . . . . Intel | -11 -10 -10 -9 ------- Run | Scr Mat Min Mat Robot Analysis Total 1 | . 1 . . Derelict Logs Recovered 1 | . . 1 . Drone Launches . | . . . . Drone Recoveries . | . . . . Exploration | -11 -10 -10 -9 ------------- Run | Scr Mat Min Mat Turns Passed 2366 | 162 1518 364 322 Spaces Moved 2758 | 164 1667 667 260 Core 122 | 121 1 . . Treads 92 | 43 49 . . Legs . | . . . . Wheels . | . . . . Hover . | . . . . Flight 2544 | . 1617 667 260 Fastest Speed 34 | 50 37 37 34 Average Speed 42 | 90 40 37 34 Slowest Speed 160 | 160 160 37 37 Overloaded Moves . | . . . . Propulsion Burnouts . | . . . . Robots Hopped 19 | . 13 5 1 Cave-ins Triggered . | . . . . Exploration Rate (%) 52 | 7 99 94 11 Regions Visited 3 Branch Regions 1 Pre-discovered Areas . | . . . . Known Exits Taken 3 | 1 1 1 . Unknown Exits Taken . | . . . . Scrap Searched 1 | . . 1 . Spaces Dug . | . . . . Terrain Destroyed 85 | . . . 85 Melee . | . . . . Projectile . | . . . . AOE 85 | . . . 85 Actions | -11 -10 -10 -9 --------- Run | Scr Mat Min Mat Total 3811 | 174 2410 760 467 Wait 944 | . 679 76 189 Move 2718 | 163 1641 656 258 Hop 18 | . 12 5 1 Pick Up 10 | 4 5 1 . Fast Attach 11 | 6 5 . . Attach 5 | 1 1 1 2 Detach 4 | . 2 1 1 Swap 4 | . 1 2 1 Drop 10 | . 8 2 . Fire 87 | . 56 16 15 Melee . | . . . . Ram . | . . . . Kick . | . . . . Crush . | . . . . Escape Stasis . | . . . . Rewire . | . . . . Trap . | . . . . Miscellaneous . | . . . . Route ------- -11/Scrapyard -10/Materials (discovered 4 exits: *Mat x3 / *Min) -10/Mines (discovered 2 exits: *Mat x2) -9/Materials (discovered 1 exit: Mat) History --------- Turn | Location | Event 4 | -11/Scrapyard | Identified exit to Materials 4 | -11/Scrapyard | Discovered exit to Materials (range 15) 163 | -11/Scrapyard | Entered Materials 163 | -10/Materials | Evolved 1 slot: Utility x1 272 | -10/Materials | Identified exit to Mines 272 | -10/Materials | Discovered exit to Mines (range 14) 325 | -10/Materials | Build established: Hacker-Mutant 782 | -10/Materials | Identified exit to Materials 782 | -10/Materials | Discovered exit to Materials (range 16) 1518 | -10/Materials | Discovered exit to Materials (range 18) 1638 | -10/Materials | Discovered exit to Materials (range 7) 1681 | -10/Materials | Entered Mines 1687 | -10/Mines | Discovered exit to Materials (range 17) 1714 | -10/Mines | Met a Derelict bent on vengeance 1779 | -10/Mines | Discovered exit to Materials (range 9) 1817 | -10/Mines | Learned 2 Materials zone layouts 1839 | -10/Mines | Met a Derelict shopkeep closing up shop 2045 | -10/Mines | Entered Materials 2045 | -9/Materials | Evolved 2 slots: Propulsion x1, Utility x1 2046 | -9/Materials | Identified exit to Materials 2367 | -9/Materials | Self-destructed Last Messages --------------- 02216_ U-05 Engineer lays Concrete. 02219_ K-01 Serf collects debris. 02219_ U-05 Engineer builds a Wall. 02239_ U-05 Engineer builds a Door. 02240_ Connecting with Terminal... 02321_ K-01 Serf cleans the Nuclear Reactor. 02347_ U-05 Engineer lays Concrete. 02347_ UO-LFC(g) destroyed. 02349_ U-05 Engineer lays Concrete. 02349_ Y-45 Defender destroyed. 02349_ U-05 Engineer destroyed. 02358_ S-10 Pest destroyed. 02363_ Y-45 Defender destroyed. 02366_ R-06 Scavenger collects Terrain Scanner. 02367_ Nuclear Reactor explodes. 02367_ Flight Unit destroyed. 02367_ Destroyed Flight Unit. 02367_ Y-45 Defender destroyed. 02367_ Nuclear Reactor explodes. 02367_ R-06 Scavenger destroyed. Map ----- +----------------------------------------------------+ | | | ?????????????????????????????????????????????????? | | ?????????????????????????????????????????????????? | | ?????????????????????????????????????????????????? | | ?????????????????????????????????????????????????? | | ?????????????????????????????????????????????????? | | ?????????????????????????????????????????????????? | | ?????????????????????????????????????????????????? | | ?????????????????????????????????????????????????? | | ?????????????????????????????????????????????????? | | ?????????????????????????????????????????????????? | | ?????????????????????????????????????????????????? | | ?????????????????????????????????????????????????? | | ????????????????????????????????????????????###### | | ????????????????????????????????????????????# # | | ????????????????????????????????????????????# # | | ?????#??????????????????????????????????????# # | | ?????+ ?????????????????????????????????????# / | | ?????? ????????????????????????????????????# # | | ??????" ???????????????????????????????????# # | | ??????" ???????????????????????????????????# ## | | ??????? ????????##?####???????????????????# #? | | ??????? ??????## # #####??????????????# #? | | ???????? ?????# #??????????????# #? | | ???????? """ ????# ##?????????????# #? | | ??????? """ ???# % @ #?????????????# #? | | ?????# """ #### #?????????????# #? | | ?????# """ [= #??????######## #? | | ?????+ #?????# """ # ## | | ?????# % ! #?????# """ # # | | ?????##+####+##### !%= #?????# """ # # | | ?????????????????# ##?????# + + | | ?????????????????# ??????# # # | | ?????????????????# % ##?????# # ## | | ?????????????????# ! # ??????#+###### ## | | ?????????????????# # # ######### ##### # | | ?????????????????# % | | ?????????????????# | | ?????????????????# ? | | ?????????????????# ##################### # | | ?????????????????#######???????????????????# #+### | | ??????????????????????????????????????????? ?? | | ??????????????????????????????????????????""" ""?? | | ??????????????????????????????????????????""" """? | | ????????????????????????????????????????? """ """? | | ?????????????????????????????????????????? ? | | ???????????????????????????????????????????######? | | ?????????????????????????????????????????????????? | | ?????????????????????????????????????????????????? | | ?????????????????????????????????????????????????? | +----------------------------------------------------+ Best States ------------- Heat Dissipation 28 Energy Generation 10 Energy Capacity 250 Matter Stores 300 Matter Capacity 300 Sight Range 18 Robot Scan Range 20 Terrain Scan Density 10 Resistance: KI 35 Resistance: TH 35 Resistance: EX 35 Resistance: EM 35 Resistance: I 35 Resistance: S 35 Resistance: P 35 Evasion (%) 63 Targeting Accuracy 5 Recoil Reduction 2 Offensive Hacking 20 Item Schematics ----------------- None Robot Schematics ------------------ None Fabricated ------------ Nothing Alien Tech Used ----------------- None Achievements -------------- None Challenges ------------ None Game ------ Seed SpikedFieldDesublimator Manual? 0 Play Time 00:56:06 Cumulative 68.2 hours Start 2020.01.04 @ 00:14:59 End 2020.01.12 @ 19:14:07 Sessions 8 Manual Loads 0 Difficulty Explorer Special Mode None Game No. 57 Rogue 49 Adventurer 0 Explorer 8 Win Type - Total 0 Types 0/0/0/0/0/0/0 Lore% 37 Gallery% 40 Achievement% 36 Wizard Run 0 Options --------- ASCII 0 Keyboard 1 Movement Vi Keybinds 0 Fullscreen 1 Font 18/X11Bold Map View 76x50 Tactical HUD 1 Map Filters NONE Filters LOW_CONTRAST(47,30,31)|SHIFT_HUE(1) Steam 1 RUN: 15885858-5a4b-4694-bf77-5e9c11327195